Cogmind - Beta 15 @@@ ROGUE MODE // 2025.08.16 @ 17:38:21 Player: Cracklepappy Result: Destroyed by 8R-AWN with 8R-AWN's Boregun Performance ------------- Evolutions (0) 0 Regions Visited (3) 600 Robots Destroyed (44) 220 Value Destroyed (552) 552 Prototype IDs (25) 500 Alien Tech Used (0) 0 Bonus (292) 292 TOTAL SCORE: 2164 Bonus ------- Follower Combat Kills 7 Aligned with FarCom 300 Friendly Fire -15 Cogmind --------- Core Integrity 0/250 Matter 143/300 Energy 44/100 System Corruption 0% Temperature Cool (0) Movement Rolling (110) Ox2 Location -10/Exiles Parts ------- > --- POWER (1) -------- (None) > --- PROPULSION (2) --- Wheel Wheel > --- UTILITY (2) ------ High-capacity Storage Unit Core Shielding > --- WEAPON (2) ------- Scythe > --- INVENTORY (20) --- Light Ion Engine Fission Core Light Fission Core Wheel Heat Sink High-capacity Matter Pod (200) High-capacity Matter Pod (200) Machine Analyzer Seismic Detector Improved Trap Extractor (0/6) PSU Rigger Ion Cannon Assault Rifle Assault Rifle Shock Bomb Launcher Grenade Launcher Grenade Launcher Peak State ------------ > --- POWER ------------ Light Nuclear Core > --- PROPULSION ------- Wheel Wheel > --- UTILITY ---------- High-capacity Storage Unit PSU Rigger > --- WEAPON ----------- Light Cannon Scythe > --- INVENTORY -------- Light Ion Engine Fission Core Light Fission Core Wheel Wheel Heat Sink High-capacity Matter Pod High-capacity Matter Pod Machine Analyzer Seismic Detector Core Shielding Improved Trap Extractor Ion Cannon Assault Rifle Assault Rifle Assault Rifle Shock Bomb Launcher Grenade Launcher Grenade Launcher [Rating: 21] Favorites ----------- Power Light Nuclear Core Engine Light Ion Engine Power Core Light Nuclear Core Propulsion Wheel Wheel Wheel Utility Seismic Detector Device Seismic Detector Storage High-capacity Storage Unit Protection Core Shielding Weapon Light Cannon Energy Gun Medium Laser Ballistic Gun Assault Rifle Ballistic Cannon Light Cannon Launcher Grenade Launcher Special Weapon Mining Laser Slashing Weapon Scythe Build | -11 -10 -10 -10 ------- Run | Yrd Mat Min Exi Slots Evolved . | . . . . Power . | . . . . Propulsion . | . . . . Utility . | . . . . Weapon . | . . . . Parts Attached 30 | 8 15 3 4 Power 3 | 1 2 . . Engine 2 | 1 1 . . Core 1 | . 1 . . Reactor . | . . . . Propulsion 7 | 2 3 1 1 Treads . | . . . . Leg . | . . . . Wheel 7 | 2 3 1 1 Hover . | . . . . Flight . | . . . . Utility 10 | 3 5 . 2 Device 5 | 2 2 . 1 Storage 4 | 1 3 . . Processor . | . . . . Hackware . | . . . . Protection 1 | . . . 1 Artifact . | . . . . Weapon 10 | 2 5 2 1 Energy Gun 3 | 2 1 . . Energy Cannon . | . . . . Ballistic Gun 2 | . 2 . . Ballistic Cannon 1 | . 1 . . Launcher 2 | . . 1 1 Special Weapon 1 | . 1 . . Impact Weapon . | . . . . Slashing Weapon 1 | . . 1 . Piercing Weapon . | . . . . Special Melee Weapon . | . . . . Unidentified Prototypes . | . . . . Parts Lost 6 | . 2 . 4 Power 1 | . . . 1 Propulsion 2 | . 1 . 1 Utility 1 | . 1 . . Weapon 2 | . . . 2 Highest Loss Streak 4 | . 2 . 4 To Critical Strikes 2 | . . . 2 Average Backups 16 | 4 13 19 19 Power 1 | . 1 1 1 Propulsion 2 | 3 1 2 1 Utility 6 | . 4 9 8 Weapon 6 | . 5 7 7 Tool/Special . | . . . . Unused Backups 28 | 3 7 3 15 Power 5 | . 1 . 4 Propulsion 6 | 3 2 . 1 Utility 7 | . . 1 6 Weapon 10 | . 4 2 4 Tool/Special . | . . . . Average Slot Usage (%) 98 | . 96 100 99 Engine 4 | . 9 . . Core 9 | . 4 14 13 Wheel 26 | . 24 28 27 Device 13 | . 13 14 12 Storage 14 | . 14 14 14 Energy Gun 5 | . 11 . . Ballistic Gun 8 | . 11 10 . Ballistic Cannon 9 | . 3 14 13 Slashing Weapon 4 | . . 3 13 Peak Build Rating 21 | 7 11 13 21 Average Rating 10 | 6 8 11 13 On Entrance 7 | . 7 11 13 Naked Turns . | . . . . Heaviest Build 52 | 12 51 52 51 Greatest Support 20 | 20 20 20 20 Greatest Overweight (x) 5 | . 5 2 2 Average Overweight (x) 1 | . 1 2 2 Largest Inventory Capacity 20 | 8 20 20 20 Average Capacity 16 | 7 14 20 20 Most Carried 20 | 8 20 20 20 Average Carried 16 | 5 13 19 19 Final Capacity 20 | 8 20 20 20 Final Carried 20 | 8 20 20 17 Class Distribution -------------------- 59% | Scavenger-Mutant 40% | Mutant Dominant Class ---------------- Mutant | -10/Materials Scavenger-Mutant | -10/Mines Scavenger-Mutant | -10/Exiles Resources | -11 -10 -10 -10 ----------- Run | Yrd Mat Min Exi Matter Collected 1229 | 280 559 106 284 Remotely 145 | 145 . . . Salvage Created 1203 | 287 809 93 14 Parts 89 | 27 52 10 . Haulers Intercepted 2 | . 2 . . Recyclers Shooed 4 | 1 2 1 . Parts Field Recycled . | . . . . Retrieved Matter . | . . . . Parts Self-Destructed . | . . . . Prevented . | . . . . Kills | -11 -10 -10 -10 ------- Run | Yrd Mat Min Exi Combat Hostiles Destroyed 26 | . 14 5 7 Guns 14 | . 14 . . AOE 12 | . . 5 7 Classes Destroyed 11 | 3 7 . 1 Worker 7 | 2 5 . . Builder 1 | . 1 . . Tunneler 7 | 7 . . . Hauler 2 | . 2 . . Recycler 4 | 1 2 1 . Mechanic 1 | . 1 . . Operator 1 | . 1 . . Watcher 2 | . 2 . . Swarmer 11 | . 6 5 . Grunt 8 | . 8 . . Assembled 7 | . . . 7 Best Kill Streak 7 | 6 6 3 7 Combat Bots Only 7 | . 6 3 7 Max Kills in Single Turn 4 | 1 2 2 4 Gunslinging 1 | . 1 . . Exploded 4 | . . 2 4 Melee . | . . . . Uniques/NPCs Destroyed . | . . . . Combat | -11 -10 -10 -10 -------- Run | Yrd Mat Min Exi Hostile Shots Fired 120 | . 62 17 41 Missed 46 | . 24 7 15 Hits 74 | . 38 10 26 Melee 3 | . . . 3 Projectile 71 | . 38 10 23 Critical Strikes 13 | . . . 13 Actively Blocked 4 | . . . 4 Damage Taken 1082 | . 390 107 585 Core 259 | . 113 14 132 Absorbed by Shields . | . . . . Redirected to Shielding 15 | . . . 15 Core Remaining (%) 100 | 100 . . . Volleys Fired 107 | 20 75 8 4 Largest 2 | 2 2 2 2 Hottest 100 | 90 100 50 60 Shots Fired 205 | 40 147 10 8 Gun 174 | 40 131 2 1 Cannon 16 | . 13 2 1 Launcher 12 | . . 6 6 Special 3 | . 3 . . Kinetic 80 | . 74 4 2 Thermal 113 | 40 73 . . Explosive 12 | . . 6 6 Electromagnetic . | . . . . Robot Hit Streak 13 | 5 13 3 5 Robot Miss Streak 5 | 3 5 1 . Penetration Max . | . . . . Secondary Targets 2 | . 2 . . Max Gunslinging Chain 1 | . 1 . . Shots Hit Robots 129 | 25 95 3 6 Core Hits 77 | 11 42 10 14 Critical Kills . | . . . . Critical Parts Destroyed . | . . . . Critical Strikes 1 | . 1 . . Burn 1 | . 1 . . Melee Attacks 7 | . . 4 3 Impact . | . . . . Slashing 7 | . . 4 3 Piercing . | . . . . Sneak Attacks . | . . . . Combat Hostiles . | . . . . Follow-up Attacks . | . . . . Damage Inflicted 2448 | 313 1269 338 528 Guns 1421 | 313 1067 27 14 Cannons 238 | . 202 17 19 Explosions 726 | . . 294 432 Melee 63 | . . . 63 Ramming . | . . . . Kinetic 756 | . 679 44 33 Thermal 903 | 313 590 . . Explosive 726 | . . 294 432 Electromagnetic . | . . . . Impact . | . . . . Slashing 63 | . . . 63 Piercing . | . . . . Highest Corruption . | . . . . Average Corruption . | . . . . Corruption Purged . | . . . . Corruption Blocked . | . . . . Overload Shots . | . . . . Overflow Damage 26 | . 6 . 20 Projectiles 6 | . 6 . . Explosions 20 | . . . 20 Melee . | . . . . Knockbacks 5 | . 4 1 . Impact . | . . . . Kinetic 5 | . 4 1 . Secondary . | . . . . Self-Inflicted Damage 87 | . . 23 64 Shots 4 | . . 1 3 Rammed . | . . . . Targets Rammed . | . . . . Kicked . | . . . . Crushed . | . . . . Highest Temperature 120 | 120 114 . 10 Average Temperature 35 | 45 32 . 5 Received Heat Transfer 129 | . 129 . . Siege Activations . | . . . . Martial Activations . | . . . . Shielding Activations . | . . . . Robots Disrupted . | . . . . Combat Hostiles . | . . . . Robots Corrupted . | . . . . Combat Hostiles . | . . . . Parts Fried . | . . . . Impact Corruptions . | . . . . Robots Melted . | . . . . Combat Hostiles . | . . . . Parts Melted 6 | 2 4 . . Heat Transferred 2585 | 842 1743 . . Parts Sabotaged . | . . . . Parts Stolen . | . . . . Parts Stripped . | . . . . Power Chain Reactions . | . . . . Alert | -11 -10 -10 -10 ------- Run | Yrd Mat Min Exi Maximum Alert Level 1 | . . 1 . Low Security (%) 98 | 100 100 94 . Level 1 1 | . . 5 . Level 2 . | . . . . Level 3 . | . . . . Level 4 . | . . . . Level 5 . | . . . . High Security . | . . . . Max Security . | . . . . Peak Influence 222 | 10 185 222 . Initial 70 | . 6 70 . Average 66 | 2 75 67 . Influence Increases 826 | 50 584 192 . Destroy 0b10 Robot/C 400 | . 280 120 . Destroy 0b10 Robot/NC 120 | 50 65 5 . Destroy Leader 78 | . 58 20 . Allied During Kill 8 | . . 8 . Successful Hack 43 | . 43 . . Select Force Hacks 60 | . 60 . . Disable Machine 15 | . 15 . . Destroy Structure 42 | . 3 39 . Lose Combat Pursuer 60 | . 60 . . Influence Decreases 826 | 40 413 373 . Entered New Map 115 | . 4 111 . Time Decay 691 | 40 389 262 . Lost Part 20 | . 20 . . Squads Dispatched 3 | . 3 . . Investigation 3 | . 3 . . Extermination . | . . . . Reinforcement . | . . . . Assault . | . . . . Garrison . | . . . . Intercept . | . . . . Searches Triggered . | . . . . Construction Impeded . | . . . . Haulers Reinforced . | . . . . Active Scanning Responses . | . . . . Cargo Convoy Interrupts . | . . . . Stealth | -11 -10 -10 -10 --------- Run | Yrd Mat Min Exi Distress Signals 2 | . 2 . . Communications Jammed . | . . . . Distress Signals . | . . . . Times Spotted 45 | . 29 8 8 Peak Tracking Total 9 | . 6 3 9 Tactical Retreats 3 | . 3 . . Traps | -11 -10 -10 -10 ------- Run | Yrd Mat Min Exi Traps Triggered 1 | . 1 . . Indirectly . | . . . . Trap Hack Attempts . | . . . . Triggered . | . . . . Disarmed . | . . . . Reprogrammed . | . . . . Reused . | . . . . Traps Extracted . | . . . . Installed . | . . . . Triggered . | . . . . Exploded 1 | . . . 1 Time Bombs Activated 1 | . . . 1 Machines | -11 -10 -10 -10 ---------- Run | Yrd Mat Min Exi Machines Disabled 3 | . 1 . 2 Max in Single Turn 2 | . 1 . 2 Machines Repaired . | . . . . Machines Dismantled . | . . . . Machines Sabotaged . | . . . . Overloaded Fab Kills . | . . . . Hacking | -11 -10 -10 -10 --------- Run | Yrd Mat Min Exi Machines Accessed 13 | . 10 1 2 Terminals 8 | . 8 . . Fabricators . | . . . . Repair Stations . | . . . . Recycling Units 2 | . 2 . . Scanalyzers . | . . . . Garrison Access . | . . . . Total Hacks 40 | . 37 1 2 Successful 23 | . 20 1 2 Failed 16 | . 16 . . Catastrophic 4 | . 4 . . Database Lockouts 1 | . 1 . . Manual 22 | . 21 . 1 Terminals 33 | . 33 . . Fabricators . | . . . . Repair Stations . | . . . . Recycling Units 4 | . 4 . . Scanalyzers . | . . . . Garrison Access . | . . . . Terminal Hacks 12 | . 9 1 2 Record 1 | . . . 1 Part Schematic 1 | . 1 . . Robot Schematic 1 | . 1 . . Robot Analysis 1 | . 1 . . Prototype ID Bank 1 | . 1 . . Open Door 1 | . . 1 . Emergency Access Points 1 | . 1 . . Locate Traps 2 | . 2 . . Hauler Manifests 1 | . 1 . . Zone Layout 1 | . 1 . . Proto ID Catalog 1 | . . . 1 Fabricator Hacks . | . . . . Repair Station Hacks . | . . . . Recycling Unit Hacks . | . . . . Scanalyzer . | . . . . Garrison Access Hacks . | . . . . Unauthorized Hacks 11 | . 11 . . Terminals 9 | . 9 . . Assimilate 2 | . 2 . . Operators 1 | . 1 . . Skim 6 | . 6 . . Fabricators . | . . . . Repair Stations . | . . . . Recycling Units 2 | . 2 . . Tunnel 2 | . 2 . . Scanalyzers . | . . . . Garrison Access . | . . . . Data Cores Recovered . | . . . . Used . | . . . . Hacking Detections 9 | . 9 . . Full Trace Events 1 | . 1 . . Feedback Events . | . . . . Feedback Blocked . | . . . . Robot Schematics Acquired 1 | . 1 . . Robots Built . | . . . . Authchips . | . . . . Time . | . . . . Total Robot Build Rating . | . . . . Part Schematics Acquired 1 | . 1 . . Parts Built . | . . . . Authchips . | . . . . Time . | . . . . Total Part Build Rating . | . . . . Parts Repaired . | . . . . Time . | . . . . Parts Recycled . | . . . . Recycled Matter . | . . . . Retrieved Matter . | . . . . Retrieved Components . | . . . . Parts Scanalyzed . | . . . . Part Schematics Acquired . | . . . . Parts Damaged . | . . . . Bothacking | -11 -10 -10 -10 ------------ Run | Yrd Mat Min Exi Used RIF Installer . | . . . . Robots Hacked . | . . . . Non-combat . | . . . . Combat . | . . . . Robot Hacks Applied . | . . . . Relay Couplers Released . | . . . . Fabnet Peak Effective % . | . . . . Robots Rewired . | . . . . Allies Hacked . | . . . . Hacks Repelled . | . . . . Allies | -11 -10 -10 -10 -------- Run | Yrd Mat Min Exi Total Allies 2 | . 1 1 . Largest Group 1 | . 1 1 . Highest-Rated Group 31 | . 10 31 . Highest-Rated Ally 31 | . 10 31 . Total Orders . | . . . . Ally Attacks 7 | . . 7 . Total Damage 103 | . . 103 . Kills 3 | . . 3 . Allies Corrupted . | . . . . Allies Melted . | . . . . Intel | -11 -10 -10 -10 ------- Run | Yrd Mat Min Exi Active Infowar (turns) 2738 | 7 1241 867 623 Seismic 2738 | 7 1241 867 623 Robot Analysis Total 1 | . 1 . . Derelict Logs Recovered 2 | . . 2 . Drone Launches . | . . . . Drone Recoveries . | . . . . Exploration | -11 -10 -10 -10 ------------- Run | Yrd Mat Min Exi Turns Passed 3135 | 218 1328 867 722 Spaces Moved 2047 | 168 846 415 618 Core 4 | 4 . . . Treads . | . . . . Legs . | . . . . Wheels 2043 | 164 846 415 618 Hover . | . . . . Flight . | . . . . Fastest Speed 50 | 50 80 110 110 Average Speed 103 | 79 99 110 110 Slowest Speed 155 | 80 155 110 110 Overloaded Moves . | . . . . Propulsion Burnouts . | . . . . Robots Hopped . | . . . . Potential Cave-ins . | . . . . Cave-ins Triggered . | . . . . Exploration Rate (%) 55 | 6 97 36 81 Regions Visited 3 Branch Regions 2 Pre-discovered Areas 5 | . 2 2 1 Known Exits Taken . | . . . . Unknown Exits Taken 3 | 1 1 1 . Scrap Searched . | . . . . Spaces Dug 19 | . 2 17 . Terrain Destroyed 81 | . 2 43 36 Melee . | . . . . Projectile 2 | . 2 . . AOE 79 | . . 43 36 Terrain Rammed . | . . . . Walls Destroyed . | . . . . Machines Disabled . | . . . . Actions | -11 -10 -10 -10 --------- Run | Yrd Mat Min Exi Total 2847 | 210 1182 809 646 Wait 572 | 1 204 367 . Move 2044 | 167 845 414 618 Hop . | . . . . Pick Up 42 | 11 22 5 4 Fast Attach 9 | 7 2 . . Attach 3 | . 1 . 2 Detach . | . . . . Swap 32 | 1 16 6 9 Drop 30 | 3 17 5 5 Fire 107 | 20 75 8 4 Melee 7 | . . 4 3 Ram . | . . . . Kick . | . . . . Crush . | . . . . Escape Stasis . | . . . . Rewire . | . . . . Trap 1 | . . . 1 Miscellaneous . | . . . . Route ------- -11/Scrapyard -10/Materials (discovered 5 exits: *Mat x3 / *Min / *Sub) -10/Mines (discovered 3 exits: Mat x2 / *Exi) -10/Exiles (discovered 2 exits: *Min x2) History --------- Turn | Location | Event 6 | -11/Scrapyard | Discovered new exit (range 15) 219 | -11/Scrapyard | Entered Materials 283 | -10/Materials | Discovered new exit (range 7) 311 | -10/Materials | Build established: Mutant 647 | -10/Materials | Discovered new exit (range 5) 754 | -10/Materials | Discovered new exit (range 13) 834 | -10/Materials | Central database locked down 1021 | -10/Materials | Discovered new exit (range 13) 1071 | -10/Materials | Identified exit to Materials 1071 | -10/Materials | Learned location of 1 exit from Materials 1169 | -10/Materials | Learned Storage trap positions 1202 | -10/Materials | Identified exit to Subcaves 1225 | -10/Materials | Learned 4 Recycling zone layouts 1239 | -10/Materials | Loaded intel: 11 interactive machine locations 1264 | -10/Materials | Learned location of 1 exit from Storage 1494 | -10/Materials | Build established: Scavenger-Mutant 1547 | -10/Materials | Entered Mines 1554 | -10/Mines | Escorted by a lone wolf Derelict 1554 | -10/Mines | Learned 2 Materials zone layouts 1574 | -10/Mines | Learned location of Storage (-7) 1639 | -10/Mines | Core integrity fell below 50% 1679 | -10/Mines | Met a Derelict who couldn't figure out how to use a Trap Extractor 2052 | -10/Mines | Deemed a non-threat by the Exiles lab entrance 2076 | -10/Mines | Learned location of Zion (-6) 2224 | -10/Mines | Excavation squad dispatched 2224 | -10/Mines | A large section of the Mines collapsed 2312 | -10/Mines | Discovered new exit (range 5) 2414 | -10/Mines | Entered Exiles 2415 | -10/Exiles | Identified exit to Mines 2444 | -10/Exiles | Met 8R-AWN 2460 | -10/Exiles | Met EX-HEX 2520 | -10/Exiles | Met EX-DEC 2545 | -10/Exiles | Visited The Gauntlet 2774 | -10/Exiles | Met EX-BIN 2883 | -10/Exiles | Aligned with FarCom system 2884 | -10/Exiles | Given EX-Vault access code 2911 | -10/Exiles | Opened EX-Vault 2919 | -10/Exiles | Found PSU Rigger 2944 | -10/Exiles | Warned to stay clear of 0b10 Research branches 3096 | -10/Exiles | Attacked by the Exiles 3126 | -10/Exiles | Destroyed 7 combat bots 3129 | -10/Exiles | Core integrity fell below 20% 3136 | -10/Exiles | Destroyed by 8R-AWN with 8R-AWN's Boregun Last Messages --------------- 03104_ Penetrated by HV Slug. 03104_ Critical hit (Destroy). 03104_ Lgt. Nuclear Core destroyed. 03104_ HV Slug penetrates Machine. 03104_ Penetrated by HV Slug. 03105_ as-94333 destroyed. 03106_ HV Slug penetrates Wall. 03109_ HV Slug penetrates Earth. 03111_ Penetrated by HV Slug. 03115_ The unstable cave ceiling collapses. 03115_ HV Slug penetrates Wall. 03115_ Penetrated by HV Slug. 03115_ HV Slug penetrates Machine. 03123_ The unstable cave ceiling collapses. 03124_ Penetrated by HV Slug. 03126_ Lgt. Cannon destroyed. 03126_ Penetrated by HV Slug. 03133_ Critical hit (Destroy). 03133_ Assault Rifle destroyed. 03136_ Penetrated by HV Slug. Map ----- +----------------------------------------------------+ | """#????????????????????????????????????? | | """#????????????????????????????????????? | | """#????????????????????????????????????? | | """"????????????????????????????????????? | | """#????????????????????????????????????? | | "X" """"????????????????????????????????????? | | """ #????????????????????????????????????? | | """""""""#????????????????????????????????????? | | ###########????????????????????????????????????? | | #??????????????????????????????????????????????? | | #??????????????????????????????????????????????? | | ##?????????????????????????????????????????????? | | ##???#########????????????????????????????????? | | #####"""""""""##?????????????????????????????? | | " """ """"##????????????????????????????? | | "" " #????????????????????????????? | | " """#????????????????????????????? | | " "#???????????#####????????????? | | " "##?????????##" #????????????? | | ""###???????#" #????????????? | | """#??????##" ##???????????? | | "" "#????### ###????????## | | ###""" ##???# ########## | | ??##""" ##### #""""## | | ???#"" ;## | | ??##"" @ g ## | | ###"""" #### | | """ ""#?#"""""#### | | " #"""##?#######??#### | | ######??????????????#### | | ##??????????????????????? | | #???????????????????????? | | "" #???????????????????????? | | ##""" " " ##???????????????????????? | | ######""" """# # #????????????????????????? | | #????###""""# #????????????????????????? | | ####???###### # #????????????????????????? | | "!#????????####### #????????????????????????? | | !#??????????????# ####????????????????????????? | | "#??????????????####???????????????????????????? | | "!"#?????????????????????????????????????????????? | | ####?????????????????????????????????????????????? | | ?????????????????????????????????????????????????? | | ?????????????????????????????????????????????????? | | ?????????????????????????????????????????????????? | | ?????????????????????????????????????????????????? | | ?????????????????????????????????????????????????? | | ?????????????????????????????????????????????????? | | ?????????????????????????????????????????????????? | | ?????????????????????????????????????????????????? | +----------------------------------------------------+ Best States ------------- Heat Dissipation 35 Energy Generation 14 Energy Capacity 160 Matter Stores 300 Matter Capacity 300 Sight Range 16 Terrain Scan Density 10 Core Shielding 20 Evasion (%) 44 Item Schematics ----------------- Heat Sink | -10/Materials | Hacked Robot Schematics ------------------ M-13 Machinist | -10/Materials | Hacked Fabricated ------------ Nothing Repaired ---------- Nothing Alien Tech Used ----------------- None Achievements -------------- None Challenges ------------ None Game ------ Seed UtilityRapidTrap Manual? 0 Play Time 00:21:02 Cumulative 1251.9 hours Start 2025.08.16 @ 17:18:34 End 2025.08.16 @ 17:38:21 Sessions 1 Manual Loads 0 Difficulty Rogue Special Mode None Game No. 596 Rogue 596 Adventurer 0 Explorer 0 Win Type - Total 23 Types 10/4/3/0/1/1/2/2/0/0 Lore% 91 Gallery% 90 Achievement% 84 Wizard Run 0 Options --------- Layout 0 ASCII 0 Keyboard 0 Movement Numpad Keybinds 0 Fullscreen 2 Font 24/Smallcaps Map View 76x50 Zoom Use 0% Tactical HUD 1 Map Filters NONE Filters SHIFT_HUE(315) Steam 1 RUN: 38ccf3d6-8bc2-4d2f-82b6-b17f823ad42e